fUST/lending_fUST_20240806
["ID","MTS","AMOUNT","RATE_DAILY","PERIOD"]
[334278129,1722886164589,-152.69,0.000344,31]
[334278130,1722886164611,-250.0,0.00034609,2]
[334278131,1722886164634,-250.0,0.00034636,2]
[334278132,1722886164663,-151.0,0.00035452,120]
[334278133,1722886164685,-151.0,0.00036301,120]
[334278134,1722886164708,-217.1776358,0.00036751,2]
[334278135,1722886165158,1783.63,0.00031328,3]
[334278136,1722886180057,1486.36,0.00031328,3]
[334278137,1722886194357,1238.63,0.00031328,3]
[334278139,1722886228144,582.06530905,0.00031325,3]
[334278140,1722886228166,450.12469095,0.00031325,3]
[334278329,1722886239851,-314113.49746449,0.00031338,60]
[334278354,1722886241159,-73080.9831936,0.00031338,60]
[334278355,1722886241229,-216.80124967,0.00031338,60]
[334278356,1722886241242,-2835.83541909,0.00031338,60]
[334278357,1722886241294,860.16,0.00031325,3]
[334278455,1722886244020,-1035.2980539,0.00031338,60]
[334278456,1722886244033,-254.52615996,0.00031338,60]
[334278457,1722886244044,-68488.11787304,0.00031338,60]
[334278458,1722886244054,-476.24222806,0.000382,2]
[334278459,1722886244064,-152.69,0.000383,31]
[334278460,1722886244073,-152.69,0.000383,31]
[334278461,1722886244084,-912.08276943,0.00039,2]
[334278462,1722886244094,-3868.0,0.00039,120]
[334278463,1722886244109,-151.0,0.00039452,120]
[334278465,1722886244119,-476.24222805,0.00039656,2]
[334278466,1722886244128,-1000.0,0.0004,40]
[334278468,1722886244139,-3868.0,0.0004,120]
[334278469,1722886244149,-3868.0,0.0004,120]
[334278470,1722886244159,-1151.98487894,0.0004,30]
[334278471,1722886244168,-200.0,0.0004,2]
[334278472,1722886244178,-3910.47849151,0.00040528,2]
[334278473,1722886244188,-500.0,0.00040547,30]
[334278474,1722886244197,-500.0,0.00040684,32]
[334278476,1722886244207,-500.0,0.00040821,34]
[334278477,1722886244216,-151.0,0.00040904,120]
[334278478,1722886244226,-153.0,0.00040932,2]
[334278479,1722886244235,-500.0,0.00040958,36]
[334278480,1722886244245,-683.58339063,0.0004097,2]
[334278481,1722886244254,-2000.0,0.0004097,2]
[334278482,1722886244263,-10000.0,0.00041,41]
[334278483,1722886244274,-3868.0,0.00041,120]
[334278484,1722886244287,-3868.0,0.00041,120]
[334278485,1722886244296,-3989.26,0.00041,120]
[334278486,1722886244305,-204845.958229,0.0004106,5]
[334278487,1722886244316,-18806.35387185,0.0004107,21]
[334278488,1722886244325,-20930.39883211,0.0004107,21]
[334278489,1722886244335,-1642918.71820852,0.0004107,30]
[334278490,1722886245174,769.03961425,0.00027,120]
[334278491,1722886245196,2083.81330373,0.00027,120]
[334278492,1722886245218,1183.82060844,0.00027,120]
[334278542,1722886246981,-4632.00000027,0.0004107,30]
[334278544,1722886253041,2359.52730338,0.00027,120]
[334278545,1722886253068,2640.47269662,0.00027,120]
[334278546,1722886262196,5000.0,0.00027,120]
[334278547,1722886270928,2525.35300232,0.00027,120]
[334278593,1722887131286,-181.86268,0.00014247,2]
[334278594,1722887131308,-167.316904,0.00014247,2]
[334278595,1722887131337,-250.0,0.00020306,2]
[334278596,1722887131359,-736.83550501,0.0002052,2]
[334278598,1722887236509,-4725.28306605,0.00019995,2]
[334278599,1722887238111,-210.28550234,0.00019995,2]
[334278600,1722887239146,-5112.22157969,0.00019995,2]
[334278601,1722887239176,-245.95425055,0.00019995,2]
[334278602,1722887285918,759.48322612,0.0002,10]
[334278603,1722887352553,154.54409492,0.0002,15]
[334278604,1722887353125,-500.0,0.00019158,2]
[334278605,1722887353149,-367.5275752,0.00019158,2]
[334278606,1722887353171,-596.54420955,0.00019158,2]
[334278607,1722887353194,-500.0,0.00019158,2]
[334278608,1722887353216,-12660.06693489,0.00019159,2]
[334278609,1722887362262,-43380.37627681,0.00019159,2]
[334278610,1722887362284,-3000.0,0.00019445,2]
[334278611,1722887362305,-250.95351123,0.00019477,2]
[334278612,1722887362328,-161.78914857,0.00019477,2]
[334278613,1722887362349,-209.85118264,0.00019477,2]
[334278614,1722887362369,-319.59058574,0.00019547,2]
[334278615,1722887362391,-412.91003871,0.00019547,2]
[334278616,1722887362413,-222.77062633,0.00019547,2]
[334278617,1722887362434,-314.35121047,0.000199,2]
[334278618,1722887362455,-721.54,0.00019985,3]
[334278619,1722887362476,-14606.25560137,0.00019995,2]
[334278620,1722887362497,-3601.91477368,0.00019995,2]
[334278621,1722887362518,-2253.0398834,0.00019995,2]
[334278622,1722887362539,-201.45923245,0.00019999,2]
[334278623,1722887362559,-426.89711274,0.0002,2]
[334278624,1722887362581,-16562.02652874,0.0002,2]
[334278625,1722887362605,-154.79927048,0.0002,2]
[334278626,1722887362626,-282.73351605,0.0002,2]
[334278627,1722887362658,-928.7536126,0.0002,2]
[334278628,1722887362683,-912.4763458,0.0002,2]
[334278629,1722887362703,-175.37858355,0.0002028,2]
[334278630,1722887362723,-1789.36939162,0.0002052,2]
[334278631,1722887362744,-174.00375999,0.0002052,2]
[334278632,1722887362764,-522.32545193,0.00020721,2]
[334278633,1722887362786,-155.25435631,0.00021542,2]
[334278634,1722887362808,-663.95202459,0.00021591,2]
[334278635,1722887362829,-492.45155524,0.00021642,2]
[334278636,1722887362852,-195.70656665,0.00021816,2]
[334278637,1722887362874,-481.70784012,0.00025,30]
[334278638,1722887362895,-168.964361,0.00025502,2]
[334278639,1722887362916,-226.00558908,0.00026583,2]
[334278640,1722887362943,-152.66,0.000266,31]
[334278641,1722887362968,-152.66,0.000266,31]
[334278642,1722887362991,-152.66,0.000266,31]
[334278643,1722887363016,-152.66,0.000266,31]
[334278644,1722887363041,-152.66,0.000266,31]
[334278645,1722887363066,-152.66,0.000266,31]
[334278646,1722887363090,-152.66,0.000266,31]
[334278647,1722887363112,-189.52144051,0.00027,2]
[334278648,1722887363134,-151.0,0.0003,120]
[334278649,1722887363165,-151.0,0.0003,120]
[334278650,1722887363189,-154.75391149,0.0003,4]
[334278651,1722887363213,-152.66,0.000305,31]
[334278652,1722887363240,-152.66,0.000305,31]
[334278653,1722887363265,-152.66,0.000305,31]
[334278654,1722887363289,-152.66,0.000305,31]
[334278655,1722887363313,-152.66,0.000305,31]
[334278656,1722887363336,-152.66,0.000305,31]
[334278657,1722887363360,-152.66,0.000305,31]
[334278658,1722887363382,-910.839265,0.00030781,2]
[334278659,1722887363415,-158.0,0.00033,2]
[334278660,1722887363437,-158.0,0.00033151,2]
[334278661,1722887363459,-151.0,0.00033342,120]
[334278662,1722887363483,-152.66,0.000344,31]
[334278663,1722887363509,-152.66,0.000344,31]
[334278664,1722887363534,-152.66,0.000344,31]
[334278665,1722887363559,-152.66,0.000344,31]
[334278666,1722887363585,-152.66,0.000344,31]
[334278667,1722887363613,-152.66,0.000344,31]
[334278668,1722887363645,-152.66,0.000344,31]
[334278669,1722887363673,-158.0,0.00034521,2]
[334278670,1722887363695,-151.0,0.00035452,120]
[334278671,1722887364183,240.28360953,0.0002,2]
[334278672,1722887364217,158.91248787,0.0002,2]
[334278673,1722887364354,215.7100545,0.00026639,2]
[334278674,1722887364798,451.44009086,0.0002,2]
[334278675,1722887368161,-160.0,0.00036247,2]
[334278676,1722887368183,-151.0,0.00036685,120]
[334278677,1722887368204,-695.1,0.0003725,3]
[334278678,1722887368224,-3012.88919167,0.0003726,31]
[334278681,1722887404907,328.61218188,0.00025,30]
[334278682,1722887404932,765.94655779,0.00025,30]
[334278725,1722887431703,-151.0,0.00031461,14]
[334278727,1722887431712,-2684.70352642,0.0003726,30]
[334278762,1722887437747,-7315.29647358,0.0003726,30]
[334278763,1722887437757,-152.66,0.000383,31]
[334278764,1722887437767,-152.66,0.000383,31]
[334278765,1722887437776,-152.66,0.000383,31]
[334278766,1722887437785,-152.66,0.000383,31]
[334278767,1722887437794,-152.66,0.000383,31]
[334278768,1722887437804,-152.66,0.000383,31]
[334278769,1722887437814,-152.66,0.000383,31]
[334278770,1722887437823,-1750.32439631,0.00039,120]
[334278771,1722887437836,-2117.67560369,0.00039,120]
[334278772,1722887437864,-158.0,0.00039871,14]
[334278773,1722887437874,-3868.0,0.0004,120]
[334278774,1722887437884,-3868.0,0.0004,120]
[334278775,1722887437896,-200.0,0.0004,2]
[334278776,1722887437906,-12640.95275491,0.0004,2]
[334278777,1722887437915,-151.0,0.00040027,120]
[334278778,1722887437925,-500.0,0.00040547,30]
[334278779,1722887437936,-555.02681176,0.00040558,28]
[334278780,1722887437948,-4813.6680821,0.00040591,2]
[334278781,1722887437959,-198.6571644,0.00040658,2]
[334278782,1722887437969,-388.0658705,0.00040658,2]
[334278783,1722887437979,-153.0,0.00040658,2]
[334278784,1722887437990,-294.2886399,0.00040658,2]
[334278785,1722887437999,-153.0,0.00040658,2]
[334278786,1722887438009,-294.2886399,0.00040658,2]
[334278787,1722887438020,-153.0,0.00040658,2]
[334278788,1722887438029,-294.2886399,0.00040658,2]
[334278789,1722887438039,-293.8032582,0.00040658,2]
[334278790,1722887438049,-207.0130742,0.00040658,2]
[334278791,1722887438059,-207.0130742,0.00040658,2]
[334278792,1722887438069,-500.0,0.00040684,32]
[334278793,1722887438078,-3358.84418977,0.00040812,5]
[334278794,1722887438087,-500.0,0.00040821,120]
[334278795,1722887438096,-500.0,0.00040821,34]
[334278796,1722887438106,-153.0,0.00040822,2]
[334278797,1722887438115,-153.0,0.00040822,2]
[334278798,1722887438125,-207.0130742,0.00040822,2]
[334278799,1722887438134,-153.0,0.00040822,2]
[334278800,1722887438144,-153.0,0.00040822,2]
[334278801,1722887438153,-153.0,0.00040822,2]
[334278802,1722887438164,-151.0,0.00040904,120]
[334278803,1722887438174,-500.0,0.00040958,36]
[334278804,1722887438184,-20000.00000001,0.0004097,5]
[334278805,1722887438198,-2000.0,0.0004097,2]
[334278806,1722887438208,-284.97892555,0.00040975,2]
[334278807,1722887438217,-284.97892554,0.0004098,2]
[334278808,1722887438227,-284.97892554,0.00040985,2]
[334278809,1722887438236,-284.97892554,0.0004099,2]
[334278810,1722887438246,-284.97892554,0.00040995,2]
[334278811,1722887438256,-3868.0,0.00041,120]
[334278812,1722887438267,-1582.58369332,0.00041,120]
[334278813,1722887438280,-333.93090862,0.00041,120]
[334278814,1722887438292,-1951.48539806,0.00041,120]
[334278815,1722887438301,-3989.26,0.00041,120]
[334278816,1722887438311,-600.0,0.00041029,2]
[334278817,1722887438321,-718.26,0.0004106,3]
[334278818,1722887438331,-10076.5325693,0.0004106,5]
[334278819,1722887438341,-150.5,0.00041065,120]
[334278820,1722887438350,-173083.86647391,0.0004107,30]
[334278821,1722887438359,-150.5,0.00041075,120]
[334278822,1722887438369,-53741.5070363,0.00041085,5]
[334278823,1722887438379,-236.56991232,0.00041094,30]
[334278824,1722887438388,-343.11124426,0.00041095,31]
[334278825,1722887438397,-500.0,0.00041095,31]
[334278826,1722887438407,-510.8010597,0.00041095,31]
[334278827,1722887438417,-500.0,0.00041095,31]
[334278828,1722887438426,-347.30565168,0.00041095,31]
[334278829,1722887438441,-522.39,0.00041095,31]
[334278830,1722887438450,-500.0,0.00041095,31]
[334278831,1722887438459,-500.0,0.00041095,31]
[334278832,1722887438469,-503.29388024,0.00041095,31]
[334278833,1722887438479,-500.0,0.00041095,31]
[334278834,1722887438488,-500.0,0.00041095,31]
[334278835,1722887438497,-500.0,0.00041095,31]
[334278836,1722887438506,-500.0,0.00041095,31]
[334278837,1722887438516,-500.0,0.00041095,31]
[334278838,1722887438526,-500.0,0.00041095,31]
[334278839,1722887438535,-500.0,0.00041095,31]
[334278840,1722887438545,-399.43819965,0.00041095,31]
[334278841,1722887438555,-500.0,0.00041095,31]
[334278842,1722887438564,-500.0,0.00041095,31]
[334278843,1722887438574,-500.0,0.00041095,31]
[334278844,1722887438584,-500.0,0.00041095,31]
[334278845,1722887438594,-500.0,0.00041095,31]
[334278846,1722887438603,-500.0,0.00041095,31]
[334278847,1722887438614,-915.53,0.00041095,31]
[334278848,1722887438626,-500.0,0.00041095,31]
[334278849,1722887438635,-500.0,0.00041095,31]
[334278850,1722887438645,-500.0,0.00041095,31]
[334278851,1722887438654,-500.0,0.00041095,31]
[334278852,1722887438664,-500.0,0.00041095,31]
[334278853,1722887438674,-3235.39,0.00041095,31]
[334278854,1722887438684,-500.0,0.00041095,31]
[334278855,1722887438699,-500.0,0.00041095,31]
[334278856,1722887438712,-500.0,0.00041095,31]
[334278857,1722887438721,-500.0,0.00041095,31]
[334278858,1722887438731,-500.0,0.00041095,31]
[334278859,1722887438741,-500.0,0.00041095,31]
[334278860,1722887438750,-500.0,0.00041095,31]
[334278861,1722887438760,-500.0,0.00041095,31]
[334278862,1722887438770,-500.0,0.00041095,31]
[334278863,1722887438782,-388.94142723,0.00041095,31]
[334278864,1722887438792,-500.0,0.00041095,31]
[334278865,1722887438802,-500.0,0.00041095,31]
[334278866,1722887438812,-500.0,0.00041095,31]
[334278867,1722887438821,-500.0,0.00041095,31]
[334278868,1722887438831,-500.0,0.00041095,31]
[334278869,1722887438840,-500.0,0.00041095,31]
[334278870,1722887438850,-500.0,0.00041095,31]
[334278871,1722887438860,-500.0,0.00041095,31]
[334278872,1722887438869,-4417.3,0.00041095,31]
[334278873,1722887438879,-500.0,0.00041095,31]
[334278874,1722887438888,-500.0,0.00041095,31]
[334278875,1722887438899,-500.0,0.00041095,31]
[334278876,1722887438908,-500.0,0.00041095,31]
[334278877,1722887438917,-335.65,0.00041095,31]
[334278878,1722887438927,-500.0,0.00041095,31]
[334278879,1722887438939,-477.29743375,0.00041095,31]
[334278880,1722887438949,-500.0,0.00041095,31]
[334278881,1722887438958,-506.48836032,0.00041095,31]
[334278882,1722887438968,-500.0,0.00041095,31]
[334278883,1722887438977,-500.0,0.00041095,31]
[334278884,1722887438987,-500.0,0.00041095,31]
[334278885,1722887438996,-500.0,0.00041095,31]
[334278886,1722887439005,-500.0,0.00041095,31]
[334278887,1722887439014,-500.0,0.00041095,31]
[334278888,1722887439024,-500.0,0.00041095,31]
[334278889,1722887439033,-500.0,0.00041095,31]
[334278890,1722887439043,-500.0,0.00041095,31]
[334278891,1722887439052,-500.0,0.00041095,31]
[334278892,1722887439062,-500.0,0.00041095,31]
[334278893,1722887439072,-502.39252143,0.00041095,31]
[334278894,1722887439081,-500.0,0.00041095,31]
[334278895,1722887439090,-500.0,0.00041095,31]
[334278896,1722887439100,-500.0,0.00041095,31]
[334278897,1722887439110,-501.47744705,0.00041095,31]
[334278898,1722887439119,-500.0,0.00041095,31]
[334278899,1722887439128,-500.0,0.00041095,31]
[334278900,1722887439137,-500.0,0.00041095,31]
[334278901,1722887439147,-500.0,0.00041095,31]
[334278902,1722887439292,-500.0,0.00041095,31]
[334278903,1722887439301,-500.0,0.00041095,31]
[334278904,1722887439310,-501.53597063,0.00041095,31]
[334278905,1722887439320,-500.0,0.00041095,20]
[334278906,1722887439330,-500.0,0.00041095,31]
[334278907,1722887439339,-500.0,0.00041095,31]
[334278909,1722887439349,-500.0,0.00041095,31]
[334278911,1722887439358,-500.0,0.00041095,31]
[334278912,1722887439367,-500.0,0.00041095,31]
[334278913,1722887439376,-500.0,0.00041095,31]
[334278914,1722887439386,-500.0,0.00041095,31]
[334278915,1722887439395,-500.0,0.00041095,31]
[334278916,1722887439404,-500.0,0.00041095,31]
[334278917,1722887439414,-649.08472811,0.00041095,31]
[334278918,1722887439424,-500.0,0.00041095,31]
[334278919,1722887439434,-500.0,0.00041095,31]
[334278920,1722887439446,-500.0,0.00041095,31]
[334278921,1722887439456,-500.0,0.00041095,31]
[334278922,1722887439466,-500.0,0.00041095,31]
[334278923,1722887439476,-475.19079176,0.00041095,31]
[334278924,1722887439486,-503.19716598,0.00041095,31]
[334278925,1722887439495,-500.0,0.00041095,31]
[334278926,1722887439505,-500.0,0.00041095,31]
[334278927,1722887439515,-500.0,0.00041095,31]
[334278928,1722887439524,-500.0,0.00041095,31]
[334278929,1722887439534,-528.2638976,0.00041095,31]
[334278930,1722887439543,-500.0,0.00041095,31]
[334278931,1722887439552,-500.0,0.00041095,31]
[334278932,1722887439562,-500.0,0.00041095,31]
[334278933,1722887439571,-500.0,0.00041095,31]
[334278934,1722887439580,-500.0,0.00041095,31]
[334278935,1722887439590,-510.92449234,0.00041095,31]
[334278936,1722887439600,-6581.56,0.00041095,31]
[334278937,1722887439611,-500.0,0.00041095,31]
[334278938,1722887439622,-500.0,0.00041095,31]
[334278939,1722887439632,-500.0,0.00041095,31]
[334278940,1722887439641,-500.0,0.00041095,31]
[334278941,1722887439651,-500.0,0.00041095,31]
[334278942,1722887439661,-500.0,0.00041095,21]
[334278943,1722887439670,-500.0,0.00041095,31]
[334278944,1722887439680,-500.0,0.00041095,31]
[334278945,1722887439695,-500.0,0.00041095,31]
[334278946,1722887439705,-500.0,0.00041095,31]
[334278947,1722887439714,-500.0,0.00041095,31]
[334278948,1722887439724,-500.0,0.00041095,31]
[334278949,1722887439733,-500.0,0.00041095,31]
[334278950,1722887439742,-500.0,0.00041095,31]
[334278951,1722887439752,-500.0,0.00041095,31]
[334278952,1722887439762,-500.0,0.00041095,31]
[334278953,1722887439771,-500.0,0.00041095,31]
[334278954,1722887439781,-500.0,0.00041095,31]
[334278955,1722887439791,-450.51190373,0.00041095,31]
[334278956,1722887439800,-500.0,0.00041095,31]
[334278957,1722887439810,-500.0,0.00041095,31]
[334278958,1722887439820,-500.0,0.00041095,31]
[334278959,1722887439830,-500.0,0.00041095,31]
[334278960,1722887439840,-500.0,0.00041095,31]
[334278961,1722887439849,-500.0,0.00041095,31]
[334278962,1722887439858,-500.63198735,0.00041095,7]
[334278963,1722887439868,-415.28690629,0.00041095,31]
[334278964,1722887439878,-500.0,0.00041095,31]
[334278965,1722887439887,-500.0,0.00041095,31]
[334278966,1722887439896,-500.0,0.00041095,31]
[334278967,1722887439907,-500.0,0.00041095,31]
[334278968,1722887439916,-500.0,0.00041095,31]
[334278969,1722887439926,-500.0,0.00041095,31]
[334278970,1722887439940,-500.0,0.00041095,31]
[334278971,1722887439952,-500.0,0.00041095,31]
[334278972,1722887439962,-500.0,0.00041095,31]
[334278973,1722887439972,-541.44526863,0.00041095,31]
[334278974,1722887439986,-500.0,0.00041095,31]
[334278975,1722887439998,-500.0,0.00041095,31]
[334278976,1722887440009,-500.0,0.00041095,31]
[334278977,1722887440021,-500.0,0.00041095,31]
[334278978,1722887440031,-500.0,0.00041095,31]
[334278979,1722887440041,-500.0,0.00041095,31]
[334278980,1722887440052,-504.44702231,0.00041095,31]
[334278981,1722887440063,-500.0,0.00041095,31]
[334278982,1722887440074,-500.0,0.00041095,31]
[334278983,1722887440085,-500.0,0.00041095,31]
[334278984,1722887440095,-500.0,0.00041095,31]
[334278985,1722887440105,-500.0,0.00041095,31]
[334278986,1722887440115,-500.0,0.00041095,31]
[334278987,1722887440125,-500.0,0.00041095,31]
[334278988,1722887440134,-500.0,0.00041095,31]
[334278989,1722887440144,-500.0,0.00041095,31]
[334278990,1722887440153,-500.0,0.00041095,31]
[334278991,1722887440163,-500.0,0.00041095,31]
[334278992,1722887440173,-500.0,0.00041095,31]
[334278993,1722887440183,-500.0,0.00041095,31]
[334278994,1722887440201,-500.0,0.00041095,31]
[334278995,1722887440210,-500.0,0.00041095,31]
[334278996,1722887440223,-500.0,0.00041095,31]
[334278997,1722887440232,-500.0,0.00041095,31]
[334278998,1722887440242,-500.0,0.00041095,31]
[334278999,1722887440252,-500.0,0.00041095,31]
[334279000,1722887440262,-500.0,0.00041095,31]
[334279001,1722887440273,-500.0,0.00041095,31]
[334279002,1722887440282,-500.0,0.00041095,31]
[334279003,1722887440291,-500.0,0.00041095,30]
[334279004,1722887440301,-500.0,0.00041095,31]
[334279005,1722887440311,-500.0,0.00041095,2]
[334279006,1722887440320,-500.0,0.00041095,31]
[334279007,1722887440330,-500.0,0.00041095,31]
[334279008,1722887440340,-500.0,0.00041095,31]
[334279009,1722887440349,-500.0,0.00041095,31]
[334279010,1722887440359,-500.0,0.00041095,31]
[334279011,1722887440369,-500.0,0.00041095,31]
[334279012,1722887440379,-500.0,0.00041095,31]
[334279013,1722887440389,-500.0,0.00041095,31]
[334279014,1722887440399,-500.0,0.00041095,31]
[334279015,1722887440409,-500.0,0.00041095,31]
[334279016,1722887440418,-500.0,0.00041095,31]
[334279017,1722887440428,-500.0,0.00041095,31]
[334279018,1722887440444,-500.0,0.00041095,31]
[334279019,1722887440454,-500.0,0.00041095,31]
[334279020,1722887440464,-500.0,0.00041095,31]
[334279021,1722887440474,-500.0,0.00041095,31]
[334279022,1722887440483,-500.0,0.00041095,31]
[334279023,1722887440492,-500.0,0.00041095,31]
[334279024,1722887440503,-500.0,0.00041095,31]
[334279025,1722887440512,-500.0,0.00041095,31]
[334279026,1722887440522,-503.10026611,0.00041095,31]
[334279027,1722887440531,-500.0,0.00041095,30]
[334279028,1722887440540,-500.0,0.00041095,31]
[334279029,1722887440549,-500.0,0.00041095,31]
[334279030,1722887440558,-500.0,0.00041095,31]
[334279031,1722887440568,-500.0,0.00041095,31]
[334279032,1722887440577,-500.0,0.00041095,31]
[334279033,1722887440587,-511.2561908,0.00041095,31]
[334279034,1722887440596,-500.0,0.00041095,31]
[334279035,1722887440606,-500.0,0.00041095,31]
[334279036,1722887440619,-500.0,0.00041095,31]
[334279037,1722887440629,-500.0,0.00041095,31]
[334279038,1722887440638,-450.83068183,0.00041095,31]
[334279039,1722887440647,-500.0,0.00041095,31]
[334279040,1722887440658,-500.0,0.00041095,31]
[334279041,1722887440667,-500.0,0.00041095,31]
[334279042,1722887440677,-500.0,0.00041095,31]
[334279043,1722887440690,-500.0,0.00041095,31]
[334279044,1722887440700,-500.0,0.00041095,31]
[334279045,1722887440709,-500.0,0.00041095,31]
[334279046,1722887440718,-500.0,0.00041095,31]
[334279047,1722887440728,-500.0,0.00041095,31]
[334279048,1722887440750,-500.0,0.00041095,31]
[334279049,1722887440760,-513.04471253,0.00041095,31]
[334279050,1722887440769,-500.0,0.00041095,31]
[334279051,1722887440779,-500.0,0.00041095,31]
[334279052,1722887440788,-500.0,0.00041095,31]
[334279053,1722887440798,-500.0,0.00041095,31]
[334279054,1722887440807,-553.16243449,0.00041095,31]
[334279055,1722887440816,-500.0,0.00041095,31]
[334279056,1722887440825,-500.0,0.00041095,31]
[334279057,1722887440836,-500.0,0.00041095,31]
[334279058,1722887440846,-500.0,0.00041095,31]
[334279059,1722887440855,-500.0,0.00041095,31]
[334279060,1722887440864,-500.0,0.00041095,31]
[334279061,1722887440874,-502.96044572,0.00041095,31]
[334279062,1722887440884,-500.0,0.00041095,31]
[334279063,1722887440893,-500.0,0.00041095,31]
[334279064,1722887440902,-500.0,0.00041095,31]
[334279065,1722887440912,-500.0,0.00041095,31]
[334279066,1722887440922,-500.0,0.00041095,31]
[334279067,1722887440932,-500.0,0.00041095,31]
[334279068,1722887440948,-500.0,0.00041095,31]
[334279069,1722887440958,-503.99856236,0.00041095,31]
[334279070,1722887440968,-538.9,0.00041095,31]
[334279071,1722887440978,-500.0,0.00041095,31]
[334279072,1722887440987,-500.0,0.00041095,31]
[334279073,1722887440997,-500.0,0.00041095,31]
[334279074,1722887441006,-500.0,0.00041095,31]
[334279075,1722887441015,-500.0,0.00041095,31]
[334279076,1722887441025,-602.05,0.00041095,31]
[334279077,1722887441034,-501.75326931,0.00041095,31]
[334279078,1722887441044,-500.0,0.00041095,31]
[334279079,1722887441054,-500.0,0.00041095,31]
[334279080,1722887441064,-503.94584499,0.00041095,31]
[334279081,1722887441074,-500.0,0.00041095,31]
[334279082,1722887441083,-500.0,0.00041095,31]
[334279083,1722887441092,-500.0,0.00041095,31]
[334279084,1722887441102,-500.0,0.00041095,31]
[334279085,1722887441113,-500.0,0.00041095,31]
[334279086,1722887441122,-500.0,0.00041095,31]
[334279087,1722887441132,-500.0,0.00041095,31]
[334279088,1722887441142,-500.0,0.00041095,31]
[334279090,1722887441152,-175.22417968,0.00041095,2]
[334279092,1722887441161,-500.0,0.00041095,31]
[334279094,1722887441170,-500.0,0.00041095,31]
[334279096,1722887441180,-500.0,0.00041095,31]
[334279098,1722887441195,-500.0,0.00041095,31]
[334279100,1722887441204,-500.0,0.00041095,31]
[334279102,1722887441214,-500.0,0.00041095,31]
[334279104,1722887441223,-500.0,0.00041095,31]
[334279106,1722887441234,-500.0,0.00041095,31]
[334279108,1722887441243,-500.0,0.00041095,31]
[334279110,1722887441252,-500.0,0.00041095,31]
[334279112,1722887441262,-500.0,0.00041095,31]
[334279114,1722887441272,-500.0,0.00041095,31]
[334279116,1722887441282,-500.0,0.00041095,31]
[334279118,1722887441292,-596.99793014,0.00041095,31]
[334279120,1722887441301,-500.0,0.00041095,31]
[334279122,1722887441311,-500.0,0.00041095,31]
[334279124,1722887441321,-500.0,0.00041095,31]
[334279125,1722887441330,-500.0,0.00041095,31]
[334279127,1722887441339,-500.0,0.00041095,31]
[334279129,1722887441349,-500.0,0.00041095,31]
[334279131,1722887441359,-500.0,0.00041095,31]
[334279133,1722887441368,-500.0,0.00041095,31]
[334279135,1722887441378,-500.0,0.00041095,31]
[334279137,1722887441387,-500.0,0.00041095,31]
[334279139,1722887441396,-500.0,0.00041095,31]
[334279141,1722887441406,-500.0,0.00041095,31]
[334279143,1722887441415,-500.0,0.00041095,31]
[334279145,1722887441425,-500.0,0.00041095,31]
[334279146,1722887441435,-500.0,0.00041095,31]